fUSD/lending_fUSD_20240222
["ID","MTS","AMOUNT","RATE_DAILY","PERIOD"]
[314888473,1708621837654,-258.83760791,0.00029778,2]
[314888474,1708621837663,-100000.0,0.00029778,2]
[314888476,1708621837672,-245000.0,0.00029778,2]
[314888478,1708621837682,-5000.0,0.0002978,2]
[314888480,1708621837691,-677.52868756,0.00029799,4]
[314888482,1708621837700,-162.72309137,0.00029799,2]
[314888484,1708621837710,-151.57647452,0.00029799,2]
[314888486,1708621837722,-2874.68590478,0.00029799,2]
[314888487,1708621837731,-424.55913896,0.00029799,2]
[314888489,1708621837740,-396.42372534,0.00029799,2]
[314888490,1708621837749,-1059.2821448,0.00029799,2]
[314888491,1708621837758,-1593.81644855,0.00029799,2]
[314888492,1708621837767,-200.0,0.000298,2]
[314888493,1708621837776,-154.0433466,0.00029868,2]
[314888494,1708621837786,-94914.0661961,0.00029878,2]
[314888495,1708621837799,-185.98114424,0.00029879,2]
[314888496,1708621837811,-412.51068012,0.00029879,2]
[314888497,1708621837821,-181.81600446,0.00029879,2]
[314888498,1708621837830,-238.3494545,0.00029879,2]
[314888499,1708621837840,-541.93683605,0.00029879,2]
[314888500,1708621837850,-316.33036581,0.00029879,15]
[314888501,1708621837859,-1000.0,0.00029879,2]
[314888502,1708621837868,-2120314.82165794,0.0002988,2]
[314888503,1708621837880,-306156.80026283,0.0002988,2]
[314888505,1708621840098,-1573.87980224,0.0002988,2]
[314888510,1708621842410,-178348.89993906,0.0002988,2]
[314888511,1708621842422,-1353858.46800207,0.0002988,2]
[314888512,1708621842932,-515.70641662,0.00029879,2]
[314888513,1708621842942,-746.70112318,0.0002988,2]
[314888514,1708621842991,-1049591.14423179,0.0002988,2]
[314888515,1708621843005,-105778.55519949,0.0002988,2]
[314888516,1708621843015,-2035.37081666,0.000299,2]
[314888517,1708621843025,-716.78,0.0002997,2]
[314888518,1708621843038,-177.69,0.00029976,2]
[314888519,1708621843048,-500.0,0.00029976,2]
[314888520,1708621843058,-312.78337604,0.0003,4]
[314888521,1708621843068,-1000.0,0.0003,2]
[314888522,1708621843078,-1000.0,0.0003,2]
[314888523,1708621843088,-2874.68590475,0.0003007,2]
[314888524,1708621843098,-151.48806227,0.00030121,4]
[314888525,1708621843108,-677.52868753,0.00030224,5]
[314888526,1708621843119,-1349.92,0.00030228,2]
[314888527,1708621843128,-176.75,0.00030318,2]
[314888528,1708621843138,-2874.68590475,0.0003034,2]
[314888529,1708621843149,-177.69,0.00030524,2]
[314888530,1708621843159,-151.48806227,0.00030563,5]
[314888531,1708621843170,-2837.0,0.000306,2]
[314888532,1708621843179,-2874.68590475,0.00030611,2]
[314888533,1708621843189,-677.52868753,0.0003065,5]
[314888534,1708621843199,-165.44,0.00030682,2]
[314888535,1708621843209,-200.0,0.000308,3]
[314888536,1708621843219,-174.14,0.00030812,2]
[314888537,1708621843229,-163.55,0.00030875,2]
[314888538,1708621843239,-154.01,0.00030875,2]
[314888540,1708621843249,-2874.68590475,0.00030882,2]
[314888542,1708621843259,-426.14,0.0003098,2]
[314888543,1708621843269,-151.48806227,0.00031006,5]
[314888544,1708621843279,-176.75,0.0003104,2]
[314888545,1708621843289,-177.69,0.00031072,2]
[314888546,1708621843299,-677.52868753,0.00031075,5]
[314888547,1708621843309,-2874.68590475,0.00031153,2]
[314888548,1708621843319,-396.42372534,0.00031288,2]
[314888549,1708621843329,-1059.28214479,0.00031288,2]
[314888550,1708621843339,-1228.51176925,0.00031393,2]
[314888551,1708621843349,-2874.68590475,0.00031423,3]
[314888552,1708621843358,-151.48806227,0.00031448,5]
[314888553,1708621843368,-152.0,0.00031469,3]
[314888554,1708621843378,-677.52868753,0.00031501,5]
[314888555,1708621843387,-439.8,0.00031578,2]
[314888556,1708621843398,-656.77,0.00031602,2]
[314888557,1708621843408,-716.78,0.00031614,2]
[314888558,1708621843418,-177.69,0.0003162,2]
[314888559,1708621843428,-1228.51176925,0.00031639,2]
[314888560,1708621843438,-2890.0,0.00031672,2]
[314888561,1708621843448,-302.0,0.00031672,2]
[314888562,1708621843458,-455.0,0.00031672,2]
[314888563,1708621843469,-390.0,0.00031672,2]
[314888564,1708621843478,-2933.0,0.00031672,2]
[314888565,1708621843488,-8180.0,0.00031672,2]
[314888566,1708621843498,-7432.0,0.00031672,2]
[314888567,1708621843507,-4106.0,0.00031672,2]
[314888568,1708621843516,-4390.14739508,0.00031672,2]
[314888569,1708621843530,-404.871865,0.00031672,2]
[314888570,1708621843567,-1198.45089281,0.00031672,2]
[314888571,1708621843689,-8905.77445779,0.00031672,2]
[314888572,1708621843701,-1643.40463971,0.00031672,2]
[314888573,1708621843734,-334.37839027,0.00031672,2]
[314888574,1708621843746,-480.95,0.00031672,2]
[314888575,1708621843833,-1315.81499999,0.00031672,2]
[314888577,1708621845366,-1212.20735935,0.00031672,2]
[314888578,1708621845376,-906.23522823,0.00031672,2]
[314888579,1708621845424,-1387.76477177,0.00031672,2]
[314888580,1708621845434,-365.2853139,0.00031672,2]
[314888581,1708621845446,-673.7146861,0.00031672,2]
[314888582,1708621845455,-2874.68590475,0.00031694,3]
[314888583,1708621845465,-176.75,0.00031762,2]
[314888584,1708621845475,-1228.51176925,0.00031787,2]
[314888585,1708621845484,-200.0,0.000318,4]
[314888586,1708621845493,-151.48806227,0.00031891,5]
[314888587,1708621845503,-7452.66016118,0.000319,4]
[314888588,1708621845513,-677.52868753,0.00031926,5]
[314888589,1708621845522,-2874.68590475,0.00031965,3]
[314888590,1708621845532,-3999.999999,0.00032,2]
[314888591,1708621845541,-166897.25478158,0.00032,2]
[314888592,1708621845649,-501.23073282,0.00032,2]
[314888593,1708621845662,-4926.94847201,0.00032,2]
[314888594,1708621845673,-952.86685494,0.00032,2]
[314888601,1708621918328,700.89,0.0002651,2]
[314888603,1708622320219,-155.0,0.00027871,2]
[314888604,1708622320251,-415.16358472,0.00027872,2]
[314888605,1708622320279,-155.0,0.00027872,2]
[314888606,1708622320311,-204.0,0.0002788,2]
[314888607,1708622320342,-254.0,0.000288,2]
[314888608,1708622427321,155.0,0.000288,2]
[314888609,1708622441347,155.0,0.000288,2]
[314888610,1708622463349,155.0,0.000288,2]
[314888611,1708622485329,263.37635678,0.000288,2]
[314888612,1708622531040,88.4600585,0.00026713,2]
[314888620,1708622996001,406.32,0.00025963,2]
[314888631,1708623031649,-155.0,0.00026694,2]
[314888632,1708623031658,-155.0,0.00026695,2]
[314888633,1708623031667,-4.916,0.00026696,2]
[314888634,1708623031679,-150.084,0.00026696,2]
[314888635,1708623031688,-143.17997614,0.00026696,2]
[314888636,1708623031700,-498.23905597,0.00026696,2]
[314888637,1708623031732,-123.33629225,0.00026696,2]
[314888638,1708623031741,-415.16358472,0.00026697,2]
[314888639,1708623031750,-322.45606182,0.00026707,2]
[314888640,1708623031759,-155.0,0.00026713,2]
[314888641,1708623031769,-769.98,0.00027759,2]
[314888642,1708623031778,-2000.0,0.00027908,2]
[314888643,1708623031788,-769.98,0.0002792,2]
[314888644,1708623031798,-500.0,0.00027948,2]
[314888645,1708623031807,-750.0,0.00028006,2]
[314888646,1708623031816,-150.0,0.00028062,2]
[314888647,1708623031826,-769.98,0.0002808,2]
[314888648,1708623031835,-725.94,0.00028091,2]
[314888649,1708623031844,-1124.93,0.00028198,2]
[314888650,1708623031854,-1752.54,0.00028209,2]
[314888651,1708623031863,-219.8685599,0.00028214,2]
[314888652,1708623031872,-406.32,0.00028226,2]
[314888653,1708623031882,-769.98,0.0002824,2]
[314888654,1708623031891,-183.63,0.00028301,2]
[314888655,1708623031900,-250.0,0.00028315,2]
[314888656,1708623031910,-2022.88547158,0.00028354,2]
[314888661,1708623031953,-52.68452842,0.00028354,2]
[314888663,1708623031962,-179.65,0.00028376,2]
[314888665,1708623031971,-674.51,0.00028384,2]
[314888667,1708623031981,-1135.74,0.00028395,2]
[314888669,1708623031990,-769.98,0.00028401,2]
[314888670,1708623031999,-394.07,0.00028427,2]
[314888672,1708623032009,-500.0,0.00028436,2]
[314888674,1708623032018,-302.4,0.0002847,2]
[314888677,1708623032027,-250.0,0.00028502,2]
[314888678,1708623032036,-769.98,0.00028561,2]
[314888680,1708623032045,-177.69,0.00028677,2]
[314888682,1708623032054,-769.98,0.00028722,2]
[314888684,1708623032064,-769.98,0.00028882,2]
[314888686,1708623032073,-769.98,0.00029042,2]
[314888688,1708623032083,-769.98,0.00029203,2]
[314888690,1708623032093,-177.69,0.00029225,2]
[314888692,1708623032102,-718.21,0.0002924,2]
[314888695,1708623032112,-605.93,0.00029281,2]
[314888696,1708623032121,-152.79,0.00029418,2]
[314888699,1708623032135,-152.79,0.00029591,2]
[314888700,1708623032144,-280.3631,0.0002962,2]
[314888702,1708623032153,-7081.0984,0.0002962,2]
[314888704,1708623032162,-1834.5931,0.0002962,2]
[314888707,1708623032173,-300.0,0.00029676,2]
[314888709,1708623032181,-779.45,0.00029676,2]
[314888711,1708623032190,-22289.15760179,0.00029677,2]
[314888713,1708623032203,-1097.02441633,0.00029677,2]
[314888772,1708623037544,-3895.89988991,0.00029677,2]
[314888773,1708623037556,-1872.47344206,0.00029677,2]
[314888774,1708623037568,-1512.48542843,0.00029677,2]
[314888775,1708623037579,-1001.64414006,0.00029677,2]
[314888776,1708623037592,-63245.38127752,0.00029677,2]
[314888777,1708623037601,-15697.0582,0.00029678,2]
[314888778,1708623037610,-500.0,0.00029678,2]
[314888779,1708623037620,-100000.0,0.00029678,2]
[314888780,1708623037629,-725.94,0.00029735,2]
[314888781,1708623037638,-152.79,0.00029764,2]
[314888782,1708623037647,-177.69,0.00029773,2]
[314888783,1708623037655,-200.0,0.000298,2]
[314888784,1708623037665,-664.75551155,0.00029879,5]
[314888785,1708623037674,-300.0,0.00029879,2]
[314888786,1708623037683,-300.0,0.00029879,2]
[314888787,1708623037692,-300.0,0.00029879,2]
[314888788,1708623037702,-300.0,0.00029879,2]
[314888789,1708623037711,-300.0,0.00029879,2]
[314888790,1708623037720,-300.0,0.00029879,2]
[314888791,1708623037729,-300.0,0.00029879,2]
[314888792,1708623037738,-214.70198504,0.00029879,2]
[314888793,1708623037747,-152.79,0.00029937,2]
[314888794,1708623037757,-312.78337604,0.0003,4]
[314888795,1708623037766,-152.79,0.0003011,2]
[314888796,1708623037776,-187.84,0.00030174,2]
[314888797,1708623037786,-152.79,0.00030283,2]
[314888798,1708623037795,-177.69,0.00030321,2]
[314888799,1708623037804,-150.0,0.00030411,2]
[314888800,1708623037814,-344.29,0.00030411,2]
[314888801,1708623037823,-423.57,0.00030411,2]
[314888802,1708623037834,-2368.0,0.00030422,2]
[314888803,1708623037843,-152.79,0.00030456,2]
[314888804,1708623037852,-204.0,0.00030468,2]
[314888805,1708623037862,-406.32,0.0003049,2]
[314888806,1708623037871,-16853.0,0.000306,2]
[314888807,1708623037880,-152.79,0.00030629,2]
[314888808,1708623037890,-200.0,0.000308,3]
[314888809,1708623037899,-152.79,0.00030802,2]
[314888810,1708623037908,-385.66760951,0.00030846,4]
[314888811,1708623037917,-177.69,0.00030869,2]
[314888812,1708623037926,-369.0,0.00030955,2]
[314888813,1708623037936,-152.79,0.00030975,2]
[314888814,1708623037945,-174.14,0.00031133,2]
[314888815,1708623037954,-152.79,0.00031148,2]
[314888816,1708623037964,-154.01,0.00031213,2]
[314888817,1708623037973,-412.88,0.00031233,2]
[314888818,1708623037983,-1258.77935722,0.00031308,2]
[314888819,1708623037991,-152.79,0.00031321,2]
[314888820,1708623038001,-725.94,0.00031378,2]
[314888821,1708623038010,-177.69,0.00031417,2]
[314888822,1708623038019,-4685.88,0.00031426,2]
[314888823,1708623038028,-1611.01,0.00031426,2]
[314888824,1708623038037,-3017.35,0.00031426,2]
[314888825,1708623038046,-5004.84,0.00031426,2]
[314888826,1708623038055,-152.79,0.00031494,2]
[314888827,1708623038065,-200.0,0.000315,10]
[314888828,1708623038074,-1258.77935722,0.00031521,2]
[314888829,1708623038083,-150.0,0.0003163,2]
[314888830,1708623038093,-406.29,0.00031644,2]
[314888831,1708623038102,-917.7,0.00031644,2]
[314888832,1708623038111,-152.79,0.00031668,2]
[314888833,1708623038120,-118559.08155695,0.00031673,4]
[314888834,1708623038131,-4055.06352696,0.00031679,4]
[314888835,1708623038143,-779.93345222,0.00031689,4]
[314888836,1708623038152,-224.79174964,0.00031691,4]
[314888837,1708623038161,-779.93345222,0.00031695,4]
[314888838,1708623038171,-4055.06352696,0.00031702,4]
[314888839,1708623038180,-779.93345222,0.00031704,4]
[314888840,1708623038189,-105043.51781225,0.00031713,4]
[314888841,1708623038198,-224.79174964,0.00031726,4]
[314888842,1708623038208,-105043.51781225,0.00031731,4]
[314888843,1708623038218,-4055.06352696,0.00031731,4]
[314888844,1708623038227,-118559.08155695,0.00031733,4]
[314888845,1708623038236,-105043.51781225,0.00031735,4]
[314888846,1708623038245,-4055.06352696,0.00031739,4]
[314888847,1708623038254,-105043.51781225,0.00031742,4]
[314888848,1708623038263,-779.93345222,0.00031743,4]
[314888849,1708623038272,-224.79174964,0.00031747,4]
[314888850,1708623038283,-118559.08155695,0.00031749,4]
[314888851,1708623038294,-118559.08155695,0.00031753,4]
[314888852,1708623038303,-118559.08155695,0.00031773,4]
[314888853,1708623038312,-779.93345222,0.00031781,4]
[314888854,1708623038323,-224.79174964,0.00031787,4]
[314888855,1708623038333,-4055.06352696,0.00031792,4]
[314888856,1708623038343,-224.79174964,0.00031792,4]
[314888857,1708623038352,-105043.51781225,0.00031794,4]
[314888858,1708623038361,-200.0,0.000318,4]
[314888859,1708623038370,-152.79,0.00031841,2]
[314888860,1708623038379,-2245.0,0.000319,4]
[314888861,1708623038389,-155.0,0.000319,2]
[314888862,1708623038398,-531.27214953,0.000319,2]
[314888863,1708623038407,-252.50367088,0.00031961,2]
[314888864,1708623038417,-353.73,0.00031965,2]
[314888865,1708623038426,-394.07,0.00031981,2]
[314888866,1708623038436,-39354.93705406,0.00031988,2]
[314888867,1708623038446,-157570.058702,0.0003199,2]
[314888868,1708623038456,-154.0433466,0.0003199,2]
[314888869,1708623038465,-229.83924677,0.00031998,4]
[314888870,1708623038474,-316.33036581,0.00031999,15]
[314888871,1708623038484,-238.3494545,0.00031999,7]
[314888872,1708623038494,-541.93683605,0.00031999,7]
[314888873,1708623038504,-437416.28719487,0.00032,2]
[314888874,1708623038513,-1000.0,0.00032,3]
[314888875,1708623038522,-150.1,0.00032,3]
[314888876,1708623038533,-3000.0,0.00032,2]
[314888877,1708623038542,-4000.0,0.00032,2]
[314888878,1708623038552,-152.79,0.00032014,2]
[314888879,1708623038561,-1231.0,0.00032061,2]
[314888880,1708623038571,-1257.0,0.00032061,2]
[314888881,1708623038581,-216.0,0.00032061,2]
[314888882,1708623038590,-600.0,0.00032061,2]
[314888883,1708623038600,-1953.0,0.00032061,2]
[314888884,1708623038609,-430.0,0.00032061,2]
[314888885,1708623038619,-859.0,0.00032061,2]
[314888886,1708623038628,-1007.0,0.00032061,2]
[314888887,1708623038637,-276.0,0.00032061,2]
[314888888,1708623038647,-2890.0,0.00032061,2]
[314888889,1708623038657,-338.0,0.00032061,2]
[314888890,1708623038666,-302.0,0.00032061,2]
[314888891,1708623038675,-1009.973,0.00032061,2]
[314888892,1708623038685,-322.0,0.00032061,2]
[314888893,1708623038694,-390.0,0.00032061,2]
[314888894,1708623038704,-455.0,0.00032061,2]
[314888895,1708623038713,-1869.0,0.00032061,2]
[314888896,1708623038723,-3720.462,0.00032061,2]
[314888897,1708623038732,-2694.0,0.00032061,2]
[314888898,1708623038741,-8180.0,0.00032061,2]
[314888899,1708623038750,-1372.0,0.00032061,2]
[314888900,1708623038760,-269.4,0.00032061,2]
[314888901,1708623038769,-19886.0,0.00032061,2]
[314888902,1708623038778,-2933.0,0.00032061,2]
[314888903,1708623038788,-2294.0,0.00032061,2]
[314888904,1708623038797,-533.0,0.00032061,2]
[314888905,1708623038806,-458.0,0.00032061,2]
[314888906,1708623038815,-710.0,0.00032061,2]
[314888907,1708623038824,-955.0,0.00032061,2]
[314888908,1708623038834,-1039.0,0.00032061,2]
[314888909,1708623038844,-1258.77935724,0.00032164,2]
[314888910,1708623038854,-164.00101498,0.00032167,3]
[314888911,1708623038863,-1358.17531305,0.00032168,3]
[314888912,1708623038872,-152.79,0.00032187,2]
[314888913,1708623038881,-252.50367086,0.00032199,2]
[314888914,1708623038891,-249.818,0.00032203,2]
[314888915,1708623038900,-171.671,0.00032203,2]
[314888916,1708623038909,-155.0,0.00032229,2]
[314888917,1708623038918,-10082.41568062,0.00032237,2]
[314888918,1708623038928,-8008.22130681,0.00032254,4]
[314888919,1708623038938,-94854.37839146,0.00032255,7]
[314888920,1708623038947,-3435.53354441,0.00032269,2]
[314888921,1708623038957,-2342.89305548,0.00032275,2]
[314888922,1708623038968,-1358.17531296,0.00032286,4]
[314888923,1708623038978,-453.0,0.00032289,3]
[314888924,1708623038987,-8196.40500142,0.00032327,2]
[314888925,1708623038996,-531.27214951,0.00032338,2]
[314888926,1708623039336,-152.79,0.0003236,2]
[314888927,1708623039370,-454.36630257,0.00032363,2]
[314888928,1708623039379,-212322.00408869,0.00032376,2]
[314888929,1708623039389,-1576.46123332,0.00032389,2]
[314888930,1708623039398,-1358.17531296,0.00032403,4]
[314888931,1708623039407,-196212.54677656,0.00032403,2]
[314888932,1708623039422,-16109.45731213,0.00032403,2]
[314888933,1708623039431,-1576.46123332,0.00032408,2]
[314888934,1708623039441,-81000.1,0.00032428,5]
[314888935,1708623039451,-52808.48,0.00032428,5]
[314888936,1708623039460,-31062.76,0.00032428,5]
[314888937,1708623039469,-123599.54171738,0.00032429,2]
[314888938,1708623039491,-253.40358143,0.00032429,2]
[314888939,1708623039525,-1176.60009051,0.00032429,2]
[314888940,1708623039537,-563.68163121,0.00032429,2]
[314888941,1708623039557,-2422.52742972,0.00032429,2]
[314888942,1708623039595,-11590.90092325,0.00032429,2]
[314888943,1708623039645,-1632.22125844,0.00032429,2]
[314888944,1708623039657,-24796.69159625,0.00032429,2]
[314888945,1708623041065,-1087.7210005,0.00032429,2]
[314888946,1708623041245,-1424.0,0.00032429,2]
[314888947,1708623041257,-260.97505988,0.00032429,2]
[314888948,1708623041281,-3008.15635682,0.00032429,2]
[314888949,1708623042096,-2660.58331564,0.00032,3]
[314888950,1708623042106,-67824.27611876,0.00032429,2]
[314888951,1708623042116,-252.50367086,0.00032437,2]
[314888952,1708623042126,-507567.65,0.00032453,5]
[314888953,1708623042140,-10014.29,0.00032453,5]
[314888954,1708623042149,-75478.96,0.00032453,5]
[314888955,1708623042158,-37293.69,0.00032453,5]
[314888956,1708623042167,-29715.1,0.00032453,5]
[314888957,1708623042177,-3092.69,0.00032453,5]
[314888958,1708623042187,-239640.69676415,0.0003247,2]
[314888959,1708623042196,-8196.40500142,0.00032493,2]
[314888960,1708623042205,-454.36630257,0.00032498,2]
[314888961,1708623042215,-3000.0,0.000325,12]
[314888962,1708623042225,-3000.0,0.0003251,12]
[314888963,1708623042235,-3501.234586,0.0003252,12]
[314888964,1708623042244,-1358.17531296,0.00032521,4]
[314888965,1708623042254,-14541.622549,0.000326,2]
[314888966,1708623042263,-1247.86,0.000326,2]
[314888967,1708623042272,-1358.17531296,0.00032638,4]
[314888968,1708623042282,-252.50367086,0.00032675,2]
[314888969,1708623042291,-162.45994033,0.00032728,2]
[314888970,1708623042301,-4981.76421879,0.00032728,2]
[314888971,1708623042311,-10581.6669312,0.00032753,2]
[314888972,1708623042320,-56489.8386881,0.00032753,2]
[314888973,1708623042329,-406.32,0.00032754,2]
[314888974,1708623042339,-1358.17531296,0.00032756,4]
[314888975,1708623042349,-297.53721735,0.00032764,4]
[314888977,1708623042359,-399.58508054,0.00032766,5]
[314888979,1708623042368,-5000.0,0.00032776,3]
[314888980,1708623042377,-55555.0,0.00032776,3]
[314888981,1708623042387,-219.8685599,0.00032776,2]
[314888982,1708623042396,-531.27214951,0.00032776,2]
[314888983,1708623042405,-169.04454865,0.00032776,2]
[314888984,1708623042415,-264.28248356,0.00032776,2]
[314888985,1708623042424,-2936.71619284,0.00032776,2]
[314888986,1708623042434,-706.18809653,0.00032776,2]
[314888987,1708623042443,-2061.24275492,0.00032776,2]
[314888989,1708623042452,-2018.27731742,0.00032777,2]
[314888990,1708623042461,-155.0,0.00032777,2]
[314888992,1708623042471,-200.0,0.000328,5]
[314888994,1708623042481,-173.963344,0.00032872,2]
[314888995,1708623042490,-86641.85529652,0.00032872,2]
[314888997,1708623042499,-4392.67193969,0.00032873,4]
[314888998,1708623042510,-1358.17531296,0.00032873,4]
[314888999,1708623042530,-382.49838125,0.00032874,4]
[314889000,1708623042540,-74943.79743737,0.00032874,2]
[314889001,1708623042549,-195.6495583,0.00032875,4]
[314889002,1708623042558,-2663.2001,0.00032875,4]
[314889003,1708623042568,-331.91993542,0.00032875,4]
[314889004,1708623042577,-1556132.17379241,0.00032875,4]
[314889005,1708623042586,-500.0,0.00032876,2]
[314889006,1708623042595,-500.0,0.00032876,2]
[314889007,1708623042604,-487.43916834,0.00032876,2]
[314889008,1708623042613,-614.28138776,0.00032876,2]
[314889009,1708623042622,-500.0,0.00032876,2]
[314889010,1708623042631,-500.0,0.00032876,2]
[314889011,1708623042640,-500.0,0.00032876,2]
[314889012,1708623042650,-173.97587138,0.00032876,2]
[314889013,1708623042659,-597.79661994,0.00032876,2]
[314889014,1708623042669,-533.98406292,0.00032876,2]
[314889015,1708623042678,-500.0,0.00032876,2]
[314889016,1708623042687,-500.0,0.00032876,2]
[314889017,1708623042697,-500.0,0.00032876,2]
[314889018,1708623042706,-501.53014752,0.00032876,2]
[314889019,1708623042716,-500.0,0.00032876,2]
[314889020,1708623042725,-504.40198842,0.00032876,2]
[314889021,1708623042735,-523.88372643,0.00032876,2]
[314889022,1708623042744,-311.13636137,0.00032876,2]
[314889023,1708623042753,-500.0,0.00032876,2]
[314889024,1708623042763,-225.45668039,0.00032876,2]
[314889025,1708623042773,-500.0,0.00032876,2]
[314889026,1708623042782,-500.0,0.00032876,2]
[314889027,1708623042791,-500.0,0.00032876,2]
[314889028,1708623042801,-500.0,0.00032876,15]
[314889029,1708623042810,-505.20429226,0.00032876,2]
[314889030,1708623042820,-500.0,0.00032876,2]
[314889031,1708623042831,-1010.87826633,0.00032876,2]
[314889032,1708623042843,-500.0,0.00032876,2]
[314889033,1708623042852,-502.96227681,0.00032876,2]
[314889034,1708623042862,-502.07520239,0.00032876,2]
[314889035,1708623042871,-583.41206517,0.00032876,2]
[314889036,1708623042881,-500.0,0.00032876,2]
[314889037,1708623042891,-479.24500323,0.00032876,2]
[314889038,1708623042900,-503.30514719,0.00032876,2]
[314889039,1708623042910,-359.54547737,0.00032876,2]
[314889040,1708623042920,-500.0,0.00032876,2]
[314889041,1708623042931,-500.0,0.00032876,2]
[314889042,1708623042941,-500.0,0.00032876,2]
[314889043,1708623042950,-500.0,0.00032876,2]
[314889045,1708623042965,-500.0,0.00032876,2]
[314889047,1708623042975,-500.0,0.00032876,2]
[314889048,1708623042984,-500.0,0.00032876,2]
[314889050,1708623042994,-518.30936539,0.00032876,2]
[314889052,1708623043005,-500.0,0.00032876,2]
[314889054,1708623043015,-500.0,0.00032876,2]
[314889056,1708623043025,-500.0,0.00032876,2]
[314889057,1708623043035,-500.0,0.00032876,2]
[314889058,1708623043044,-500.0,0.00032876,2]
[314889059,1708623043054,-508.0073543,0.00032876,2]
[314889060,1708623043064,-508.65588899,0.00032876,2]
[314889061,1708623043073,-243.35246636,0.00032876,2]
[314889062,1708623043082,-500.0,0.00032876,2]
[314889063,1708623043093,-500.0,0.00032876,2]
[314889064,1708623043102,-500.0,0.00032876,2]
[314889065,1708623043111,-500.0,0.00032876,2]
[314889066,1708623043120,-500.0,0.00032876,2]
[314889067,1708623043133,-500.0,0.00032876,2]
[314889068,1708623043144,-500.0,0.00032876,2]
[314889069,1708623043154,-500.0,0.00032876,2]
[314889070,1708623043164,-500.0,0.00032876,2]
[314889071,1708623043174,-500.0,0.00032876,2]
[314889072,1708623043183,-500.0,0.00032876,2]
[314889073,1708623043192,-500.0,0.00032876,2]
[314889074,1708623043202,-500.0,0.00032876,2]
[314889075,1708623043212,-500.0,0.00032876,2]
[314889076,1708623043222,-500.0,0.00032876,2]
[314889077,1708623043231,-500.0,0.00032876,2]
[314889078,1708623043240,-503.51646156,0.00032876,2]
[314889079,1708623043250,-500.0,0.00032876,2]
[314889080,1708623043259,-500.0,0.00032876,2]
[314889081,1708623043268,-500.0,0.00032876,2]
[314889082,1708623043278,-500.0,0.00032876,2]
[314889083,1708623043288,-500.0,0.00032876,2]
[314889084,1708623043298,-500.0,0.00032876,2]
[314889085,1708623043307,-500.0,0.00032876,2]
[314889086,1708623043317,-500.0,0.00032876,2]
[314889087,1708623043328,-500.0,0.00032876,2]
[314889088,1708623043338,-500.0,0.00032876,2]
[314889089,1708623043350,-559.21,0.00032876,2]
[314889090,1708623043361,-500.0,0.00032876,2]
[314889091,1708623043371,-507.2433097,0.00032876,2]
[314889092,1708623043381,-500.0,0.00032876,2]
[314889093,1708623043391,-500.0,0.00032876,2]
[314889094,1708623043400,-500.0,0.00032876,2]
[314889095,1708623043414,-500.12961303,0.00032876,2]
[314889096,1708623043425,-926.68,0.00032876,2]
[314889097,1708623043434,-555.14699859,0.00032876,2]
[314889098,1708623043445,-500.0,0.00032876,2]
[314889099,1708623043454,-502.79507956,0.00032876,2]
[314889100,1708623043465,-500.0,0.00032876,2]
[314889101,1708623043474,-500.0,0.00032876,2]
[314889102,1708623043484,-503.33471903,0.00032876,2]
[314889103,1708623043494,-500.0,0.00032876,2]
[314889104,1708623043504,-500.0,0.00032876,2]
[314889105,1708623043515,-528.08,0.00032876,2]
[314889106,1708623043525,-500.0,0.00032876,2]
[314889107,1708623043535,-500.0,0.00032876,2]
[314889108,1708623043545,-500.0,0.00032876,2]
[314889109,1708623043555,-500.0,0.00032876,2]
[314889110,1708623043565,-500.0,0.00032876,2]
[314889111,1708623043574,-500.0,0.00032876,2]